[Event "84th Armenian-HL-ch 2024"]
[Site "Yerevan"]
[Date "2024.01.12"]
[Round "1.1"]
[White "Petrosyan, Manuel"]
[Black "Chaqryan, Erik"]
[Result "1-0"]
[ECO "B13"]
[WhiteElo "2627"]
[BlackElo "2308"]
[Annotator "TA"]
[PlyCount "73"]
[EventDate "2024.01.11"]
[EventType "tourn"]
[EventCountry "ARM"]
[SourceTitle "playchess.com"]
[Source "ChessBase"]
[SourceQuality "1"]
[TimeControl "40/5400+30:1800+30"]

{[%evp 24,73,29,25,29,29,29,30,37,31,36,17,22,22,21,3,4,0,0,0,4,0,14,14,14,17,21,16,81,68,451,467,471,466,431,295,362,354,412,413,460,341,370,351,350,309,289,282,555,551,1471,1336]} 1. e4 {[%emt 0:01:45]} c6 {[%emt 0:01:15]} 2. d4 {[%emt 0:01:41]} d5 {[%emt 0:00:16]} 3. exd5 {[%emt 0:00:36]} cxd5 {[%emt 0:00:07]} 4. Bd3 {[%emt 0:00:11]} Nc6 {[%emt 0:00:28]} 5. c3 {[%emt 0:00:05]} Nf6 {[%emt 0:00:07]} 6. Bf4 {[%emt 0:03:38]} Bg4 {[%emt 0:01:32]} 7. Qb3 {[%emt 0:00:45]} Qd7 {[%emt 0:00:51]} 8. Nd2 {[%emt 0:00:15]} e6 {[%emt 0:00:12]} 9. Ngf3 {[%emt 0:02:55]} Bd6 {[%emt 0:02:23]} 10. Bxd6 {[%emt 0:00:07]} Qxd6 {[%emt 0:00:07]} 11. O-O {[%emt 0:00:05]} O-O {[%emt 0:00:56]} 12. Rfe1 {[%emt 0:00:04]} Bxf3 {[%emt 0:04:47]} 13. Nxf3 {[%emt 0:00:11]} Qc7 {[%emt 0:00:05] B13: Caro-Kann: Exchange Variation and Panov-Botvinnik Attack.} 14. Qc2 {[%emt 0:05:01]} g6 {[%emt 0:01:54]} 15. Qd2 {[%emt 0:15:13] [#]} Rae8 $146 {[%emt 0:15:15] White has an edge.} ({Predecessor:} 15... Kg7 16. h4 Rae8 17. Ne5 Nxe5 18. dxe5 Nd7 19. Qf4 Qb8 20. Bb5 Qd8 21. h5 f5 {1-0 Eljanov,P (2706)-Pinheiro,I (2320) Titled Tuesday intern op 06th Dec Late blitz 2022 (2)}) 16. g3 {[%emt 0:08:56]} Kg7 {[%emt 0:15:03]} 17. Ne5 {[%emt 0:05:46]} Nxe5 {[%emt 0:00:40]} 18. Rxe5 {[%emt 0:00:36]} a6 {[%emt 0:20:13]} 19. Rae1 {[%emt 0:06:15]} b5 {[%emt 0:04:14]} 20. a3 {[%emt 0:09:31]} Nd7 {[%emt 0:08:31]} 21. R5e2 {[%emt 0:01:25]} Nb6 {[%emt 0:00:22]} 22. h4 {[%emt 0:04:50][%cal Bh2h4,Bh4h5][%mdl 32]} Nc4 {[%emt 0:05:50]} 23. Bxc4 {[%emt 0:01:58]} bxc4 {[%emt 0:00:07] [#]} 24. h5 $1 {[%emt 0:00:11]} Rg8 {[%emt 0:09:03]} (24... Qd6 25. Kg2) 25. Re5 {[%emt 0:09:24] next h6+ is good for White.} Qd8 {[%emt 0:01:27] Black is weak on the dark squares} (25... Rgf8 $11 {remains equal.}) 26. Qf4 $16 {[%emt 0:02:25][%cal Oe5e6] Strongly threatening Rxe6! White is more active.} Kf8 $2 {[%emt 0:01:17][%mdl 8192] Loses the game.} (26... h6 $14) 27. Rxe6 $18 {[%emt 0:02:32]} Rxe6 {[%emt 0:00:29]} 28. Rxe6 {[%emt 0:00:06]} gxh5 {[%emt 0:00:21][%mdl 4096] Endgame KQR-KQR} 29. Rh6 {[%emt 0:08:21]} ({Not} 29. Rxa6 Rg6 30. Ra7 Qf6 31. Qxf6 (31. Qc7 h4 $16) 31... Rxf6 $18) 29... Rg4 {[%emt 0:02:14]} 30. Qf5 {[%emt 0:04:28]} Rg5 {[%emt 0:02:34]} 31. Qxh7 {[%emt 0:00:11]} Qe7 {[%emt 0:01:03]} 32. Rxh5 {[%emt 0:03:46]} Qe1+ {[%emt 0:01:44]} 33. Kg2 {[%emt 0:00:07]} Rxh5 {[%emt 0:00:59]} 34. Qxh5 {[%emt 0:00:01] [#] Hoping for Qh8+.} Qe4+ {[%emt 0:00:05]} 35. Qf3 {[%emt 0:00:14] Qxe4 is the strong threat.} Qc2 {[%emt 0:00:04]} (35... Qe6 {keeps fighting.} 36. g4 a5) 36. Qxd5 {[%emt 0:00:15]} Qxb2 {[%emt 0:00:05]} 37. Qxc4 {[%emt 0:00:16] Weighted Error Value: White=0.23 (precise) /Black=0.55} 1-0

[Event "84th Armenian-HL-ch 2024"]
[Site "Yerevan"]
[Date "2024.01.12"]
[Round "1.2"]
[White "Ter-Sahakyan, Samvel"]
[Black "Gharibyan, Mamikon"]
[Result "1/2-1/2"]
[ECO "C88"]
[WhiteElo "2649"]
[BlackElo "2504"]
[Annotator "TA"]
[PlyCount "55"]
[EventDate "2024.01.11"]
[EventType "tourn"]
[EventCountry "ARM"]
[SourceTitle "playchess.com"]
[Source "ChessBase"]
[SourceQuality "1"]
[TimeControl "40/5400+30:1800+30"]

{[%evp 18,55,30,15,27,20,24,25,41,0,6,0,32,2,21,0,7,12,18,6,6,9,29,0,0,-12,6,0,8,0,0,0,0,-29,0,-10,0,-27,0,-8]} 1. e4 {[%emt 0:00:08]} e5 {[%emt 0:00:05]} 2. Nf3 {[%emt 0:00:06]} Nc6 {[%emt 0:00:18]} 3. Bb5 {[%emt 0:00:14][%cal Bf1b5,Bb5a4,Ba4b3][%mdl 32]} a6 {[%emt 0:00:12]} 4. Ba4 {[%emt 0:00:10]} Nf6 {[%emt 0:00:10]} 5. O-O {[%emt 0:00:10]} Be7 {[%emt 0:00:05]} 6. Re1 {[%emt 0:00:23]} b5 {[%emt 0:00:07]} 7. Bb3 {[%emt 0:00:05]} O-O {[%emt 0:00:06]} 8. a4 {[%emt 0:00:09]} Rb8 {[%emt 0:00:05]} 9. d3 {[%emt 0:12:22]} d6 {[%emt 0:00:47]} 10. c3 {[%emt 0:05:08]} b4 {[%emt 0:01:46] C88: Closed Ruy Lopez: Anti-Marshall Systems.} 11. Nbd2 {[%emt 0:05:02]} bxc3 {[%emt 0:10:04]} 12. bxc3 {[%emt 0:00:07]} d5 {[%emt 0:00:22] White has an edge.} 13. Qc2 {[%emt 0:14:40]} dxe4 {[%emt 0:02:36] [#]} 14. Nxe4 $146 {[%emt 0:07:26]} ({Predecessor:} 14. dxe4 Nd7 15. a5 Bd6 16. Nc4 Nc5 17. Ba2 Bg4 18. Bg5 Qc8 19. Nfd2 Be6 20. Red1 {½-½ Marjanovic,S (2464)-Brenjo,S (2493) SRB-chT Kragujevac 2013 (5.5)}) 14... Bg4 {[%emt 0:08:22]} 15. Nfd2 {[%emt 0:06:05]} Nxe4 {[%emt 0:11:40]} 16. dxe4 {[%emt 0:04:14]} Bc5 {[%emt 0:06:51]} 17. Nf1 {[%emt 0:02:01]} Na5 {[%emt 0:05:02]} 18. Ba2 {[%emt 0:02:26]} Qf6 {[%emt 0:00:46]} 19. Be3 {[%emt 0:02:08]} Bd6 {[%emt 0:05:13]} 20. Rab1 {[%emt 0:04:59]} Be6 {[%emt 0:07:58]} 21. Nd2 {[%emt 0:00:04]} Qe7 {[%emt 0:03:28]} 22. h3 {[%emt 0:03:50]} h6 {[%emt 0:06:40]} 23. Rxb8 {[%emt 0:02:44]} Rxb8 {[%emt 0:00:05]} 24. Rb1 {[%emt 0:00:03]} Rd8 {[%emt 0:01:53]} 25. Kh2 {[%emt 0:05:01]} Kh7 {[%emt 0:07:46]} 26. Kg1 {[%emt 0:05:03]} Kg8 {[%emt 0:00:20]} 27. Kh2 {[%emt 0:00:05]} Kh7 {[%emt 0:00:04]} 28. Kg1 {[%emt 0:00:05] Not much happened in this game.   Weighted Error Value: White=0.14 (very precise) /Black=0.12 (very precise)} 1/2-1/2

[Event "84th Armenian-HL-ch 2024"]
[Site "Yerevan"]
[Date "2024.01.12"]
[Round "1.3"]
[White "Tiraturyan, David"]
[Black "Harutyunyan, Tigran K."]
[Result "1/2-1/2"]
[ECO "C77"]
[WhiteElo "2258"]
[BlackElo "2523"]
[Annotator "TA"]
[PlyCount "79"]
[EventDate "2024.01.11"]
[EventType "tourn"]
[EventCountry "ARM"]
[SourceTitle "playchess.com"]
[Source "ChessBase"]
[SourceQuality "1"]
[TimeControl "40/5400+30:1800+30"]

{[%evp 13,79,15,29,29,25,25,26,7,19,0,0,0,6,0,0,0,0,0,0,0,0,-10,-10,-10,-10,-10,-10,-10,-10,-11,-10,-14,0,0,0,0,0,0,0,0,0,0,0,0,0,0,0,0,0,0,0,0,0,0,0,0,0,0,0,0,0,0,0,0,0,0,0,0]} 1. e4 {[%emt 0:00:03]} e5 {[%emt 0:00:30]} 2. Nf3 {[%emt 0:00:17]} Nc6 {[%emt 0:00:17]} 3. Bb5 {[%emt 0:00:12][%cal Bf1b5,Bb5a4,Ba4b3][%mdl 32]} a6 {[%emt 0:00:37]} 4. Ba4 {[%emt 0:00:06]} Nf6 {[%emt 0:00:16]} 5. d3 {[%emt 0:00:36]} b5 {[%emt 0:01:57]} 6. Bb3 {[%emt 0:00:07]} Be7 {[%emt 0:00:46] 6...Bc5 might become the main line.} 7. a4 {[%emt 0:01:43]} Rb8 {[%emt 0:04:23]} 8. axb5 {[%emt 0:04:23] C77: Ruy Lopez: 3...a6 4 Ba4 Nf6, unusual lines.} axb5 {[%emt 0:00:12]} 9. Nc3 {[%emt 0:00:25]} d6 {[%emt 0:06:51] 9...0-0 is vanishing.} 10. Nd5 {[%emt 0:15:38] White has an edge.} Nxd5 {[%emt 0:09:11] The position is equal.} 11. exd5 {[%emt 0:08:33]} Nd4 {[%emt 0:00:41]} 12. Nxd4 {[%emt 0:00:15]} exd4 {[%emt 0:00:12]} 13. Qf3 {[%emt 0:00:06]} O-O {[%emt 0:02:05]} 14. O-O {[%emt 0:00:09]} Bf6 {[%emt 0:04:13]} 15. Bd2 {[%emt 0:06:55] [#]} Bd7 $146 {[%emt 0:00:57]} ({Predecessor:} 15... Be5 16. Ra7 Rb7 17. Ra8 Qh4 18. g3 Qh3 19. Rfa1 Bg4 20. Qg2 Qh5 21. Rxf8+ Kxf8 {1-0 Malureanu,C (2139)-Ursan,C (1990) ROM-ch Sarata Monteoru 2012 (10)}) 16. Rfe1 {[%emt 0:07:14]} Ra8 {[%emt 0:02:57]} 17. Rxa8 {[%emt 0:10:25]} Qxa8 {[%emt 0:00:08]} 18. h3 {[%emt 0:00:02]} Re8 {[%emt 0:02:36]} 19. Qd1 {[%emt 0:02:56]} Kf8 {[%emt 0:06:20]} 20. Rxe8+ {[%emt 0:10:09]} Qxe8 {[%emt 0:04:30]} 21. Qe1 {[%emt 0:05:11]} Qxe1+ {[%emt 0:16:13]} 22. Bxe1 $11 {[%emt 0:02:23][%mdl 4096] Endgame KBB-KBB} Bg5 {[%emt 0:00:40]} 23. Ba5 {[%emt 0:00:23]} Bc1 {[%emt 0:02:36]} 24. Bxc7 {[%emt 0:00:12]} Ke7 {[%emt 0:00:05]} 25. c4 {[%emt 0:01:19]} Bxb2 {[%emt 0:01:48]} 26. Kf1 {[%emt 0:07:47]} Ba3 {[%emt 0:02:53]} 27. Ke2 {[%emt 0:01:08]} Bc5 {[%emt 0:00:52]} 28. cxb5 {[%emt 0:01:11]} Bxb5 {[%emt 0:00:08]} 29. f4 {[%emt 0:02:18]} f5 {[%emt 0:09:18]} (29... Kd7 $5 30. Ba5 $8 f5 $11) 30. Bc4 {[%emt 0:01:06]} Ba4 {[%emt 0:00:28]} 31. Ba5 {[%emt 0:00:16]} Ba3 {[%emt 0:01:48]} 32. Bb6 {[%emt 0:00:59]} Bb2 {[%emt 0:01:59]} 33. g3 {[%emt 0:00:23]} Bc3 {[%emt 0:00:55]} 34. Ba6 {[%emt 0:02:50]} Kd7 {[%emt 0:01:54]} 35. Bb7 {[%emt 0:00:46]} Bb5 {[%emt 0:02:02]} 36. Ba8 {[%emt 0:00:09]} g6 {[%emt 0:01:19]} 37. Bb7 {[%emt 0:00:29]} h5 {[%emt 0:02:16]} 38. h4 {[%emt 0:01:14]} Ba4 {[%emt 0:00:26]} 39. Ba8 {[%emt 0:00:11]} Bb5 {[%emt 0:02:12]} 40. Bb7 {[%emt 0:00:00] Not much happened in this game.   Weighted Error Value: White=0.02 (flawless) /Black=0.01 (flawless)} 1/2-1/2

[Event "84th Armenian-HL-ch 2024"]
[Site "Yerevan"]
[Date "2024.01.12"]
[Round "1.4"]
[White "Davtyan, Artur"]
[Black "Andriasian, Zaven"]
[Result "1/2-1/2"]
[ECO "D17"]
[WhiteElo "2477"]
[BlackElo "2581"]
[Annotator "TA"]
[PlyCount "98"]
[EventDate "2024.01.11"]
[EventType "tourn"]
[EventCountry "ARM"]
[SourceTitle "playchess.com"]
[Source "ChessBase"]
[SourceQuality "1"]
[TimeControl "40/5400+30:1800+30"]

{[%evp 20,98,27,20,32,36,36,20,19,16,64,0,0,-14,-8,-18,0,0,36,40,55,41,32,0,0,0,47,38,56,60,61,67,72,74,68,84,79,57,79,78,77,88,109,87,108,41,41,37,39,0,0,0,0,6,37,0,0,0,0,0,0,-21,-21,-21,-18,-32,-21,-21,-10,-10,-9,-9,-13,-13,0,0,0,-13,0,0,0]} 1. d4 {[%emt 0:00:14]} Nf6 {[%emt 0:00:06]} 2. c4 {[%emt 0:00:05]} c6 {[%emt 0:01:30]} 3. Nc3 {[%emt 0:00:18]} d5 {[%emt 0:00:08]} 4. Nf3 {[%emt 0:00:04]} dxc4 {[%emt 0:00:11]} 5. a4 {[%emt 0:00:05]} Bf5 {[%emt 0:00:06]} 6. Ne5 {[%emt 0:00:05]} Nbd7 {[%emt 0:00:24]} 7. Nxc4 {[%emt 0:00:06]} Qc7 {[%emt 0:00:08]} 8. g3 {[%emt 0:00:04]} e5 {[%emt 0:00:20]} 9. dxe5 {[%emt 0:00:04]} Nxe5 {[%emt 0:00:06]} 10. Bf4 {[%emt 0:00:04]} Nfd7 {[%emt 0:00:07]} 11. Bg2 {[%emt 0:00:04]} g5 $1 {[%emt 0:00:06] 11...g5 is better than 11...f6. D17: Slav Defence: 5 a4 Bf5: Lines with 6 Nh4 and 6 Ne5.} 12. Ne3 {[%emt 0:00:06]} (12. Nxe5 {simplifies} gxf4 13. Nxd7 Qxd7 14. Qxd7+ Kxd7 15. O-O-O+) 12... gxf4 {[%emt 0:00:19]} 13. Nxf5 {[%emt 0:00:05]} O-O-O {[%emt 0:00:54][%cal Of4f3]} (13... Qb6 14. gxf4 Ng6 15. e3 $16) 14. Qc2 {[%emt 0:00:19]} (14. gxf4 Nc5 15. Qc2 Nc4 $15) 14... Ng4 {[%emt 0:00:57]} (14... Ng6 $11) 15. Bh3 {[%emt 0:28:55]} (15. a5 $14) 15... h5 $11 {[%emt 0:07:41] [#]} 16. Rd1 $146 {[%emt 0:03:07]} ({Predecessor:} 16. f3 fxg3 17. hxg3 Qb6 18. a5 Qf2+ 19. Kd1 Bh6 20. f4 Kb8 21. Kc1 Ne3 22. Nxe3 Qxe3+ {½-½ Coppel,I (1302)-Parwicz,W (1840) IECC Swiss-449.2 2003}) 16... Kb8 {[%emt 0:06:05]} (16... Bc5 {looks sharper.} 17. O-O fxg3 18. hxg3 h4) 17. O-O {[%emt 0:03:00]} fxg3 {[%emt 0:12:50]} (17... a5 {with more complications.} 18. Ne4 Bb4 19. b3 Rdg8) 18. hxg3 {[%emt 0:00:46]} Ngf6 {[%emt 0:05:48]} 19. Ne4 {[%emt 0:14:54]} Bb4 {[%emt 0:05:48] Repels Qc3} 20. Nxf6 {[%emt 0:29:08]} Nxf6 {[%emt 0:00:20]} 21. Qc4 {[%emt 0:00:36]} a5 {[%emt 0:02:46]} 22. Rd4 {[%emt 0:00:09]} Nd5 {[%emt 0:04:15]} (22... Qe5 $11 {might be stronger.}) 23. Rfd1 $14 {[%emt 0:01:26]} Rde8 {[%emt 0:08:05]} 24. Bg2 {[%emt 0:03:52]} Nb6 {[%emt 0:01:11][%csl LRa4,LRc4]} 25. Qc2 {[%emt 0:00:00]} Re5 {[%emt 0:01:30]} 26. e3 {[%emt 0:00:00]} Rc5 {[%emt 0:03:48]} 27. Qb1 {[%emt 0:01:16]} Rc4 {[%emt 0:11:26]} 28. Qe4 {[%emt 0:03:54]} Rxd4 {[%emt 0:00:56]} 29. Qxd4 {[%emt 0:00:02]} ({Much worse is} 29. Rxd4 Nxa4 30. Bf3 Nb6 $11) 29... Re8 {[%emt 0:00:57]} 30. b3 {[%emt 0:00:15]} Ka7 {[%emt 0:06:49]} 31. Bf3 {[%emt 0:00:51] White has more active pieces.} Qe5 {[%emt 0:05:10]} 32. Ng7 {[%emt 0:01:23]} (32. Nd6 $16 {[%cal Od6c8] Nc8+! would be deadly.} Bc5 33. Qf4 (33. Qxe5 Rxe5 34. Kg2 f6 $16)) 32... c5 $1 {[%emt 0:02:13]} 33. Qxe5 {[%emt 0:02:21]} Rxe5 {[%emt 0:00:03]} 34. Nxh5 {[%emt 0:04:32]} ({Reject} 34. Bxh5 Rg5 35. Bxf7 Rxg7 $17) 34... c4 {[%emt 0:00:17]} 35. bxc4 {[%emt 0:00:01]} Nxa4 {[%emt 0:00:24]} 36. Nf4 {[%emt 0:00:01] [#] aiming for Nd3.} Nc3 {[%emt 0:05:07]} 37. Ra1 {[%emt 0:00:20] Nd3 is the strong threat.} Kb6 {[%emt 0:02:43]} 38. Nd5+ {[%emt 0:04:59]} Kc5 {[%emt 0:02:07]} 39. Nxc3 {[%emt 0:00:02]} Bxc3 $11 {[%emt 0:00:08][%mdl 4096] Endgame KRB-KRB} 40. Ra4 {[%emt 0:00:00]} b6 {[%emt 0:00:00][%mdl 1024] Black has compensation.} 41. Be2 {[%emt 0:00:01]} Re7 {[%emt 0:04:44]} 42. Kf1 {[%emt 0:10:48]} Rd7 {[%emt 0:00:52]} 43. Bg4 {[%emt 0:00:01] The position is equal.} Rd2 {[%emt 0:04:09]} 44. Bh5 {[%emt 0:00:05]} f6 {[%emt 0:04:00]} 45. Bf7 {[%emt 0:01:31]} Bb4 {[%emt 0:00:29]} 46. Ra1 {[%emt 0:03:33]} Bc3 {[%emt 0:04:01]} 47. Rb1 {[%emt 0:12:34]} Bb4 {[%emt 0:04:13] [#] Strongly threatening ...a4.} 48. Ra1 {[%emt 0:00:19]} Bc3 {[%emt 0:01:43]} 49. Rb1 {[%emt 0:00:04]} Bb4 {[%emt 0:02:26] Weighted Error Value: White=0.10 (very precise) /Black=0.10 (very precise)} 1/2-1/2

[Event "84th Armenian-HL-ch 2024"]
[Site "Yerevan"]
[Date "2024.01.12"]
[Round "1.5"]
[White "Piliposyan, Robert"]
[Black "Hovhannisyan, Robert"]
[Result "1-0"]
[ECO "E01"]
[WhiteElo "2367"]
[BlackElo "2611"]
[Annotator "TA"]
[PlyCount "105"]
[EventDate "2024.01.11"]
[EventType "tourn"]
[EventCountry "ARM"]
[SourceTitle "playchess.com"]
[Source "ChessBase"]
[SourceQuality "1"]
[TimeControl "40/5400+30:1800+30"]

{[%evp 12,105,-14,0,12,12,16,12,9,15,7,16,17,21,12,27,26,9,35,39,35,35,47,33,63,65,73,52,56,49,45,49,45,35,36,35,64,18,20,10,12,0,31,2,42,52,58,66,56,66,66,66,65,67,71,62,45,62,59,27,70,88,149,160,160,131,131,131,131,131,131,131,131,131,131,131,131,131,131,89,89,89,89,89,89,89,89,89,131,131,131,131,29981,29982,29982,29984]} 1. d4 {[%emt 0:00:04]} d5 {[%emt 0:00:10]} 2. c4 {[%emt 0:00:06]} c6 {[%emt 0:00:14]} 3. Nf3 {[%emt 0:00:11]} Nf6 {[%emt 0:00:08]} 4. Nc3 {[%emt 0:00:08]} e6 {[%emt 0:00:17]} 5. g3 {[%emt 0:00:17]} dxc4 {[%emt 0:01:31]} 6. Bg2 {[%emt 0:00:10]} Nbd7 {[%emt 0:01:01]} 7. O-O {[%emt 0:00:13]} Bd6 {[%emt 0:00:43] E01: Catalan: Early deviations.} 8. Nd2 {[%emt 0:00:37] Recently 8.Bg5 got a lot of attention.} Nb6 {[%emt 0:01:04]} 9. Na4 {[%emt 0:00:40]} Nxa4 {[%emt 0:03:56] The position is equal.} 10. Qxa4 {[%emt 0:00:11]} O-O {[%emt 0:01:08]} 11. Qxc4 {[%emt 0:00:14]} e5 {[%emt 0:02:11]} 12. dxe5 {[%emt 0:00:21]} Bxe5 {[%emt 0:00:04]} 13. Qc2 {[%emt 0:00:08]} Be6 {[%emt 0:04:20] [#]} 14. Nc4 $146 {[%emt 0:13:00]} ({Predecessor:} 14. Nf3 Bc7 15. Bg5 h6 16. Rad1 Qe7 17. Be3 Bb6 18. Bxb6 axb6 19. a3 Bd5 20. Rfe1 Qe4 21. Qc3 {1-0 Havas,J (2124)-Jelic,N (2095) CRO-chT3B Center North 2013 (4.3)}) 14... Qd4 {[%emt 0:07:31]} 15. Nxe5 {[%emt 0:09:16]} Qxe5 {[%emt 0:00:06]} 16. e4 {[%emt 0:03:28]} Qh5 {[%emt 0:13:47]} 17. f3 {[%emt 0:03:45]} Bh3 {[%emt 0:03:30]} 18. g4 {[%emt 0:09:54]} Qh4 {[%emt 0:00:06]} 19. Qf2 {[%emt 0:01:30]} (19. Bf4 $5 {[%cal Rf4g3]} Bxg2 20. Kxg2 $14 (20. Qxg2 h5 $14)) 19... Qxf2+ {[%emt 0:00:09][%mdl 64] Remove Defender} 20. Kxf2 {[%emt 0:00:38]} Bxg2 {[%emt 0:00:05]} 21. Kxg2 {[%emt 0:00:05]} Rfd8 {[%emt 0:04:28]} 22. Be3 {[%emt 0:07:31]} Nd7 {[%emt 0:13:48]} 23. Rfd1 {[%emt 0:00:53]} f6 {[%emt 0:10:19]} 24. Kf2 {[%emt 0:10:33] White has more active pieces.} (24. f4 $14 {is more appropriate.}) 24... Ne5 $11 {[%emt 0:06:57]} 25. Ke2 {[%emt 0:01:55]} b6 {[%emt 0:01:40]} 26. a4 {[%emt 0:12:56]} Nc4 {[%emt 0:04:59]} 27. Bd4 {[%emt 0:05:01]} c5 {[%emt 0:02:02]} (27... Na5 $5 {[%cal Ra5b3]}) 28. Bc3 {[%emt 0:00:14]} Kf7 {[%emt 0:02:17]} 29. f4 {[%emt 0:02:27]} Ke7 {[%emt 0:06:01]} 30. h4 {[%emt 0:01:38][%cal Bh2h4,Bh4h5][%mdl 32]} h6 {[%emt 0:03:29]} 31. h5 {[%emt 0:02:59]} Nd6 {[%emt 0:01:26]} 32. Kf3 {[%emt 0:00:56]} Nf7 {[%emt 0:00:56]} 33. b4 {[%emt 0:04:10]} cxb4 {[%emt 0:00:41]} 34. Bxb4+ {[%emt 0:00:06]} Ke8 {[%emt 0:00:02]} 35. Ke3 {[%emt 0:02:05]} Rac8 {[%emt 0:02:04]} 36. Rac1 {[%emt 0:00:44]} Rxd1 {[%emt 0:02:17]} (36... Rxc1 $142 37. Rxc1 Kd7) 37. Rxc8+ $16 {[%emt 0:00:15][%mdl 4096] Endgame KRB-KRN} ({But not} 37. Rxd1 $6 Rc2 $11) 37... Nd8 {[%emt 0:00:02]} 38. Rc7 {[%emt 0:01:42] Re7+ would be deadly.} Rd7 {[%emt 0:00:20] Prevents Re7+.} 39. Rxd7 {[%emt 0:04:28]} Kxd7 {[%emt 0:00:04] KB-KN} 40. Kd3 $1 {[%emt 0:00:00]} a6 {[%emt 0:00:00]} 41. Kc4 $1 {[%emt 0:01:59]} Ne6 {[%emt 0:11:21]} 42. f5 {[%emt 0:04:28]} b5+ {[%emt 0:04:11]} 43. axb5 {[%emt 0:01:46]} axb5+ {[%emt 0:00:05]} 44. Kxb5 {[%emt 0:05:56]} Nd4+ {[%emt 0:05:16]} 45. Kc5 {[%emt 0:08:19]} Nf3 {[%emt 0:00:47] [#]} 46. Kd5 $1 {[%emt 0:04:32] Bf8 is the strong threat.} Ne5 {[%emt 0:08:08]} 47. Bf8 {[%emt 0:00:23]} Nxg4 {[%emt 0:00:10]} 48. Bxg7 {[%emt 0:00:04] Strongly threatening e5.} Ke7 {[%emt 0:01:04] [#]} 49. e5 $1 {[%emt 0:00:07]} Nxe5 {[%emt 0:01:50]} 50. Bxh6 {[%emt 0:00:08]} Kf7 {[%emt 0:00:17]} 51. Bf4 {[%emt 0:00:05]} Nd7 {[%emt 0:01:24][%mdl 8192]} (51... Nd3 $16 52. Bd2 Nf2) 52. Kc6 {[%emt 0:00:36]} Ke8 {[%emt 0:05:26]} 53. Bd6 {[%emt 0:00:15] Weighted Error Value: White=0.06 (flawless) /Black=0.22 (precise)} 1-0